fUST/lending_fUST_20241021
["ID","MTS","AMOUNT","RATE_DAILY","PERIOD"]
[340582180,1729510247503,-14414.5,0.00016438,2]
[340582182,1729510247513,-500.0,0.00016438,2]
[340582184,1729510247523,-2003.89,0.00016438,2]
[340582186,1729510247533,-500.0,0.00016438,2]
[340582188,1729510247542,-151.0,0.00016438,2]
[340582190,1729510247552,-500.0,0.00016438,2]
[340582192,1729510247561,-151.0,0.00016438,2]
[340582194,1729510247571,-500.0,0.00016438,2]
[340582196,1729510247580,-500.0,0.00016438,2]
[340582198,1729510247590,-151.0,0.00016438,2]
[340582200,1729510247599,-151.0,0.00016438,2]
[340582202,1729510247608,-500.0,0.00016438,2]
[340582204,1729510247618,-500.0,0.00016438,2]
[340582206,1729510247627,-500.0,0.00016438,2]
[340582208,1729510247637,-1342.09,0.00016438,2]
[340582210,1729510247646,-500.0,0.00016438,2]
[340582212,1729510247656,-151.0,0.00016438,2]
[340582214,1729510247666,-500.0,0.00016438,2]
[340582216,1729510247676,-632.6,0.00016438,2]
[340582218,1729510247685,-151.0,0.00016438,2]
[340582220,1729510247694,-500.0,0.00016438,2]
[340582222,1729510247704,-500.0,0.00016438,2]
[340582224,1729510247713,-500.0,0.00016438,2]
[340582226,1729510247723,-8026.47,0.00016438,2]
[340582228,1729510247732,-500.0,0.00016438,2]
[340582230,1729510247741,-1595.37,0.00016438,2]
[340582232,1729510247751,-500.0,0.00016438,2]
[340582234,1729510247760,-629.59,0.00016438,2]
[340582236,1729510247770,-1697.81,0.00016438,2]
[340582238,1729510247779,-151.0,0.00016438,2]
[340582240,1729510247789,-500.0,0.00016438,2]
[340582242,1729510247799,-151.0,0.00016438,2]
[340582244,1729510247808,-404.67113188,0.00016438,2]
[340582247,1729510247819,-1270.41,0.00016438,2]
[340582248,1729510247829,-151.0,0.00016438,2]
[340582251,1729510247844,-500.0,0.00016438,2]
[340582252,1729510247853,-286.78584,0.00016438,2]
[340582254,1729510247862,-500.0,0.00016438,2]
[340582256,1729510247872,-500.0,0.00016438,2]
[340582258,1729510247882,-500.0,0.00016438,2]
[340582260,1729510247891,-500.0,0.00016438,2]
[340582263,1729510247901,-381.49505261,0.00016438,2]
[340582265,1729510247911,-650.14,0.00016438,2]
[340582266,1729510247921,-758.97,0.00016438,2]
[340582269,1729510247931,-500.0,0.00016438,2]
[340582271,1729510247940,-500.0,0.00016438,2]
[340582273,1729510247950,-902.44,0.00016438,2]
[340582275,1729510247959,-2087.75,0.00016438,2]
[340582277,1729510247968,-883.16,0.00016438,2]
[340582279,1729510247978,-500.0,0.00016438,2]
[340582281,1729510247988,-500.0,0.00016473,2]
[340582283,1729510247997,-396.942077,0.00016515,2]
[340582285,1729510248008,-396.942077,0.00016515,2]
[340582287,1729510248018,-151.0,0.00016525,2]
[340582289,1729510248027,-151.0,0.00016525,2]
[340582291,1729510248037,-151.0,0.00016525,2]
[340582293,1729510248047,-151.0,0.00016525,2]
[340582295,1729510248056,-248.598404,0.00016525,2]
[340582297,1729510248067,-35856.65132641,0.00016545,2]
[340582299,1729510248078,-151.0,0.00016545,2]
[340582301,1729510248088,-151.0,0.00016545,2]
[340582303,1729510248098,-151.0,0.00016545,2]
[340582305,1729510248107,-297.4186,0.00016691,2]
[340582307,1729510248117,-277.910984,0.00016691,2]
[340582309,1729510248127,-277.910984,0.00016691,2]
[340582311,1729510248136,-151.0,0.00016691,2]
[340582313,1729510248146,-151.0,0.00016691,2]
[340582315,1729510248157,-151.0,0.00016691,2]
[340582317,1729510248166,-151.0,0.00016691,2]
[340582319,1729510248177,-151.0,0.00016691,2]
[340582321,1729510248187,-276.292678,0.00016691,2]
[340582323,1729510248196,-151.0,0.00016691,2]
[340582325,1729510248206,-276.292678,0.00016691,2]
[340582327,1729510248216,-151.0,0.00016691,2]
[340582330,1729510248227,-232.194698,0.00016691,2]
[340582332,1729510248237,-232.194698,0.00016691,2]
[340582333,1729510248247,-151.0,0.00016692,2]
[340582335,1729510248257,-151.0,0.00016692,2]
[340582337,1729510248267,-151.0,0.00016692,2]
[340582339,1729510248278,-151.0,0.00016692,2]
[340582342,1729510248290,-151.0,0.00016692,2]
[340582344,1729510248300,-151.0,0.00016692,2]
[340582346,1729510248310,-164.574105,0.00016692,2]
[340582348,1729510248321,-164.574105,0.00016692,2]
[340582350,1729510248330,-176.512716,0.00016692,2]
[340582352,1729510248340,-176.512716,0.00016692,2]
[340582354,1729510248350,-8890.20115101,0.000167,2]
[340582356,1729510248360,-151.337081,0.00016702,2]
[340582358,1729510248369,-153.830803,0.00016702,2]
[340582360,1729510248380,-151.0,0.00016702,2]
[340582362,1729510248389,-151.0,0.00016702,2]
[340582364,1729510248399,-396.942077,0.00016702,2]
[340582365,1729510248408,-396.942077,0.00016702,2]
[340582367,1729510248419,-151.0,0.00016702,2]
[340582369,1729510248429,-151.0,0.00016702,2]
[340582372,1729510248439,-280.958874,0.00016702,2]
[340582374,1729510248450,-280.958874,0.00016702,2]
[340582376,1729510248460,-570.608103,0.00016702,2]
[340582378,1729510248469,-570.608103,0.00016702,2]
[340582380,1729510248480,-151.26439637,0.00016706,2]
[340582382,1729510248493,-945.65950739,0.00016711,2]
[340582384,1729510248503,-1693.06708534,0.00016712,2]
[340582386,1729510248513,-500.0,0.00016712,2]
[340582394,1729510248582,-500.0,0.00016712,2]
[340582396,1729510248592,-500.0,0.00016712,2]
[340582398,1729510248603,-500.0,0.00016712,2]
[340582400,1729510248613,-171.376277,0.00016712,2]
[340582402,1729510248623,-500.0,0.00016712,2]
[340582404,1729510248632,-500.0,0.00016712,2]
[340582406,1729510248642,-500.0,0.00016712,2]
[340582408,1729510248651,-405.0,0.00016712,2]
[340582410,1729510248660,-500.0,0.00016712,2]
[340582412,1729510248670,-500.0,0.00016712,2]
[340582414,1729510248679,-500.0,0.00016712,2]
[340582416,1729510248688,-500.0,0.00016712,2]
[340582418,1729510248698,-550.90882557,0.00016712,2]
[340582420,1729510248707,-1762.37,0.00016712,2]
[340582422,1729510248716,-500.0,0.00016712,2]
[340582424,1729510248726,-500.0,0.00016712,2]
[340582426,1729510248735,-500.0,0.00016712,2]
[340582428,1729510248744,-1208.62,0.00016712,2]
[340582430,1729510248753,-1542.52,0.00016712,2]
[340582432,1729510248762,-500.0,0.00016712,2]
[340582434,1729510248772,-394.37487883,0.00016712,2]
[340582436,1729510248781,-638.92,0.00016712,2]
[340582438,1729510248791,-500.0,0.00016712,2]
[340582440,1729510248800,-893.54,0.00016712,2]
[340582442,1729510248810,-500.0,0.00016712,2]
[340582444,1729510248819,-500.0,0.00016712,2]
[340582446,1729510248828,-500.0,0.00016712,2]
[340582448,1729510248840,-500.0,0.00016712,2]
[340582450,1729510248850,-500.0,0.00016712,2]
[340582452,1729510248859,-204.35,0.00016712,2]
[340582454,1729510248868,-500.0,0.00016712,2]
[340582456,1729510248881,-1045.66,0.00016712,2]
[340582458,1729510248890,-500.0,0.00016712,2]
[340582460,1729510248900,-840.8,0.00016712,2]
[340582462,1729510248909,-705.12,0.00016712,2]
[340582464,1729510248919,-2336.41,0.00016712,2]
[340582466,1729510248930,-501.68603339,0.00016712,2]
[340582468,1729510248940,-500.0,0.00016712,2]
[340582469,1729510248949,-500.0,0.00016712,2]
[340582471,1729510248959,-500.0,0.00016712,2]
[340582473,1729510248968,-500.0,0.00016712,2]
[340582475,1729510248978,-500.0,0.00016712,2]
[340582477,1729510248987,-570.68118506,0.00016712,2]
[340582479,1729510248997,-803.06,0.00016712,2]
[340582481,1729510249006,-500.0,0.00016712,2]
[340582483,1729510249015,-627.55,0.00016712,2]
[340582485,1729510249025,-946.02,0.00016712,2]
[340582487,1729510249035,-1867.22,0.00016712,2]
[340582490,1729510249044,-500.0,0.00016712,2]
[340582492,1729510249054,-260.75327,0.00016712,2]
[340582494,1729510249063,-966.05,0.00016712,2]
[340582496,1729510249073,-765.73,0.00016712,2]
[340582498,1729510249082,-500.0,0.00016712,2]
[340582500,1729510249092,-500.0,0.00016712,2]
[340582501,1729510249101,-500.0,0.00016712,2]
[340582504,1729510249110,-500.0,0.00016712,2]
[340582506,1729510249119,-500.0,0.00016712,2]
[340582507,1729510249128,-500.0,0.00016712,2]
[340582509,1729510249138,-773.2,0.00016712,2]
[340582511,1729510249147,-500.0,0.00016712,2]
[340582513,1729510249156,-1335.78,0.00016712,2]
[340582515,1729510249166,-151.0,0.00016712,2]
[340582517,1729510249175,-176.893658,0.00016712,2]
[340582519,1729510249184,-500.0,0.00016712,2]
[340582521,1729510249194,-500.0,0.00016712,2]
[340582523,1729510249203,-1039.41,0.00016712,2]
[340582525,1729510249214,-500.0,0.00016712,2]
[340582527,1729510249223,-722.27,0.00016712,2]
[340582529,1729510249232,-500.0,0.00016712,2]
[340582531,1729510249242,-500.0,0.00016712,2]
[340582533,1729510249251,-744.98,0.00016712,2]
[340582535,1729510249260,-500.0,0.00016712,2]
[340582537,1729510249269,-500.0,0.00016712,2]
[340582539,1729510249279,-500.0,0.00016712,2]
[340582541,1729510249288,-500.0,0.00016712,2]
[340582543,1729510249298,-500.0,0.00016712,2]
[340582545,1729510249307,-500.0,0.00016712,2]
[340582547,1729510249317,-500.0,0.00016712,2]
[340582549,1729510249327,-1564.5,0.00016712,2]
[340582551,1729510249336,-1068.79,0.00016712,2]
[340582553,1729510249345,-500.0,0.00016712,2]
[340582555,1729510249354,-567.3171315,0.00016712,2]
[340582557,1729510249364,-500.0,0.00016712,2]
[340582559,1729510249373,-500.0,0.00016712,2]
[340582561,1729510249383,-500.0,0.00016712,2]
[340582563,1729510249393,-500.0,0.00016712,2]
[340582565,1729510249403,-1803.9,0.00016712,2]
[340582567,1729510249412,-936.15,0.00016712,2]
[340582569,1729510249421,-500.0,0.00016712,2]
[340582571,1729510249430,-682.22,0.00016712,2]
[340582573,1729510249439,-1698.4,0.00016712,2]
[340582575,1729510249449,-500.0,0.00016712,2]
[340582577,1729510249458,-500.0,0.00016712,2]
[340582579,1729510249467,-500.0,0.00016712,2]
[340582581,1729510249477,-500.0,0.00016712,2]
[340582583,1729510249489,-684.09,0.00016712,2]
[340582585,1729510249498,-391.46800814,0.00016712,2]
[340582587,1729510249509,-860.52,0.00016712,2]
[340582589,1729510249518,-151.0,0.00016712,2]
[340582591,1729510249527,-500.0,0.00016712,2]
[340582593,1729510249537,-151.0,0.00016712,2]
[340582595,1729510249546,-151.0,0.00016712,2]
[340582597,1729510249555,-151.0,0.00016712,2]
[340582599,1729510249565,-646.1775852,0.00016712,2]
[340582601,1729510249574,-500.0,0.00016712,2]
[340582603,1729510249583,-551.31721363,0.00016712,2]
[340582605,1729510249593,-500.0,0.00016712,2]
[340582606,1729510249602,-474.04301927,0.00016712,2]
[340582608,1729510249611,-738.82,0.00016712,2]
[340582610,1729510249620,-500.0,0.00016712,2]
[340582612,1729510249629,-500.0,0.00016712,2]
[340582614,1729510249638,-664.0,0.00016712,2]
[340582616,1729510249648,-752.53,0.00016712,2]
[340582618,1729510249657,-500.0,0.00016712,2]
[340582620,1729510249666,-500.0,0.00016712,2]
[340582622,1729510249675,-500.0,0.00016712,2]
[340582624,1729510249684,-500.0,0.00016712,2]
[340582626,1729510249693,-500.0,0.00016712,2]
[340582628,1729510249703,-947.12,0.00016712,2]
[340582630,1729510249712,-1442.04,0.00016712,2]
[340582632,1729510249721,-242.119066,0.00016712,2]
[340582634,1729510249731,-500.0,0.00016712,2]
[340582636,1729510249740,-500.0,0.00016712,2]
[340582638,1729510249750,-500.0,0.00016712,2]
[340582640,1729510249759,-996.25,0.00016712,2]
[340582642,1729510249768,-621.03342538,0.00016712,2]
[340582644,1729510249778,-500.0,0.00016712,2]
[340582646,1729510249787,-500.0,0.00016712,2]
[340582648,1729510249796,-500.0,0.00016712,2]
[340582650,1729510249805,-151.0,0.00016712,2]
[340582652,1729510249815,-810.05,0.00016712,2]
[340582654,1729510249824,-151.0,0.00016712,2]
[340582656,1729510249836,-151.0,0.00016712,2]
[340582658,1729510249846,-236.548386,0.00016712,2]
[340582660,1729510249856,-500.0,0.00016712,2]
[340582662,1729510249865,-151.0,0.00016712,2]
[340582664,1729510249875,-500.0,0.00016712,2]
[340582666,1729510249885,-151.0,0.00016712,2]
[340582668,1729510249894,-151.0,0.00016712,2]
[340582670,1729510249904,-151.0,0.00016712,2]
[340582672,1729510249916,-500.0,0.00016712,2]
[340582674,1729510249925,-1355.95,0.00016712,2]
[340582676,1729510249934,-484.88314822,0.00016712,2]
[340582678,1729510249943,-500.0,0.00016712,2]
[340582680,1729510249952,-500.0,0.00016712,2]
[340582682,1729510249962,-1851.1,0.00016712,2]
[340582684,1729510249970,-500.0,0.00016712,2]
[340582686,1729510249979,-721.07,0.00016712,2]
[340582688,1729510249988,-500.0,0.00016712,2]
[340582690,1729510249998,-500.0,0.00016712,2]
[340582692,1729510250006,-1064.3,0.00016712,2]
[340582694,1729510250016,-747.87,0.00016712,2]
[340582696,1729510250025,-860.07,0.00016712,2]
[340582698,1729510250033,-500.0,0.00016712,2]
[340582700,1729510250042,-500.0,0.00016712,2]
[340582702,1729510250051,-229.393939,0.00016712,2]
[340582704,1729510250060,-1012.67,0.00016712,2]
[340582706,1729510250070,-2188.49,0.00016712,2]
[340582707,1729510250079,-151.0,0.00016712,2]
[340582709,1729510250088,-160.711346,0.00016712,2]
[340582711,1729510250097,-500.0,0.00016712,2]
[340582713,1729510250106,-1674.73,0.00016712,2]
[340582715,1729510250116,-500.0,0.00016712,2]
[340582717,1729510250125,-645.6725425,0.00016712,2]
[340582719,1729510250135,-587.52,0.00016712,2]
[340582721,1729510250144,-2627.11,0.00016712,2]
[340582723,1729510250153,-500.0,0.00016712,2]
[340582725,1729510250162,-500.0,0.00016712,2]
[340582727,1729510250171,-500.0,0.00016712,2]
[340582729,1729510250180,-500.0,0.00016712,2]
[340582731,1729510250189,-1595.75,0.00016712,2]
[340582733,1729510250198,-500.0,0.00016712,2]
[340582735,1729510250207,-500.0,0.00016712,2]
[340582737,1729510250217,-1206.5,0.00016712,2]
[340582739,1729510250226,-632.88,0.00016712,2]
[340582741,1729510250235,-2827.4,0.00016712,2]
[340582743,1729510250244,-497.37289733,0.00016712,2]
[340582745,1729510250253,-500.0,0.00016712,2]
[340582747,1729510250263,-596.94192265,0.00016712,2]
[340582749,1729510250274,-2187.47,0.00016712,2]
[340582751,1729510250283,-1351.48,0.00016712,2]
[340582753,1729510250292,-1924.04,0.00016712,2]
[340582755,1729510250303,-500.0,0.00016712,2]
[340582757,1729510250312,-1115.8,0.00016712,2]
[340582759,1729510250327,-151.0,0.00016712,2]
[340582761,1729510250336,-151.0,0.00016712,2]
[340582763,1729510250345,-151.0,0.00016712,2]
[340582765,1729510250354,-151.0,0.00016712,2]
[340582767,1729510250364,-1790.18,0.00016712,2]
[340582769,1729510250374,-151.0,0.00016712,2]
[340582771,1729510250383,-500.0,0.00016712,2]
[340582773,1729510250393,-800.5,0.00016712,2]
[340582775,1729510250402,-3010.18,0.00016712,2]
[340582777,1729510250412,-831.44,0.00016712,2]
[340582779,1729510250421,-500.0,0.00016712,2]
[340582781,1729510250431,-500.0,0.00016712,2]
[340582783,1729510250440,-285.02526462,0.00016712,2]
[340582785,1729510250449,-500.0,0.00016712,2]
[340582787,1729510250459,-891.91,0.00016712,2]
[340582789,1729510250468,-500.0,0.00016712,2]
[340582791,1729510250477,-856.62,0.00016712,2]
[340582793,1729510250490,-1348.77,0.00016712,2]
[340582795,1729510250500,-500.0,0.00016712,2]
[340582797,1729510250509,-500.0,0.00016712,2]
[340582799,1729510250518,-500.0,0.00016712,2]
[340582801,1729510250527,-500.0,0.00016712,2]
[340582803,1729510250536,-500.0,0.00016712,2]
[340582805,1729510250545,-2818.94,0.00016712,2]
[340582807,1729510250554,-517.29,0.00016712,2]
[340582809,1729510250563,-500.0,0.00016712,2]
[340582811,1729510250575,-233.65487418,0.00016712,2]
[340582861,1729510251057,-175.018493,0.00016438,2]
[340582863,1729510251067,-151.06607574,0.00016712,2]
[340582887,1729510251334,-175.018493,0.00016438,2]
[340582888,1729510251343,-175.018493,0.00016438,2]
[340582889,1729510251353,-500.0,0.00016438,2]
[340582890,1729510251362,-175.018493,0.00016438,2]
[340582891,1729510251372,-175.018493,0.00016438,2]
[340582892,1729510251382,-175.018493,0.00016438,2]
[340582893,1729510251391,-115.27905008,0.00016712,2]
[340582894,1729510251401,-500.0,0.00016712,2]
[340582895,1729510251411,-500.0,0.00016712,2]
[340582896,1729510251420,-2079.85,0.00016712,2]
[340582897,1729510251429,-500.0,0.00016712,2]
[340582898,1729510251439,-500.0,0.00016712,2]
[340582900,1729510251449,-781.27,0.00016712,2]
[340582902,1729510251458,-337.50848492,0.00016712,2]
[340582960,1729510252025,-500.0,0.00016438,2]
[340582962,1729510252035,-500.0,0.00016438,2]
[340582965,1729510252044,-151.0,0.00016438,2]
[340582966,1729510252054,-107.61090236,0.00016438,2]
[340582969,1729510252066,-43.38909764,0.00016438,2]
[340582971,1729510252076,-151.0,0.00016438,2]
[340582973,1729510252086,-151.0,0.00016438,2]
[340582975,1729510252095,-151.0,0.00016438,2]
[340582977,1729510252105,-175.018493,0.00016438,2]
[340582979,1729510252114,-358.51720319,0.00016712,2]
[340583058,1729510252882,-151.0,0.00016438,2]
[340583060,1729510252891,-175.018493,0.00016438,2]
[340583062,1729510252900,-500.0,0.00016438,2]
[340583064,1729510252910,-151.0,0.00016438,2]
[340583066,1729510252920,-175.018493,0.00016438,2]
[340583068,1729510252930,-104.00102861,0.00016438,2]
[340585107,1729510290083,500.0,0.00013698,2]
[340585108,1729510290416,122.11807973,0.0001452,2]
[340585109,1729510290440,377.88192027,0.0001452,2]
[340585111,1729511138153,-160.0,0.000148,2]
[340585112,1729511138175,-250.0,0.00015068,2]
[340585113,1729511138197,-2217.4452388,0.00015087,2]
[340585114,1729511138221,-214.401897,0.00015268,2]
[340585115,1729511138242,-357.7058386,0.00015293,2]
[340585116,1729511138264,-314.81986024,0.00016328,2]
[340585117,1729511238165,-685.18013976,0.00016328,2]
[340585118,1729511238191,-154.41706891,0.00016337,2]
[340585119,1729511238219,-586.24217249,0.00016338,2]
[340585120,1729511238242,-300.0,0.00016399,2]
[340585121,1729511238267,-300.0,0.00016399,2]
[340585122,1729511238290,-150.112233,0.000164,2]
[340585123,1729511238312,-150.112233,0.000164,2]
[340585124,1729511238335,-150.112233,0.000164,2]
[340585125,1729511238359,-150.112233,0.000164,2]
[340585126,1729511238382,-150.112233,0.000164,2]
[340585127,1729511238405,-150.112233,0.000164,2]
[340585128,1729511238428,-150.112233,0.000164,2]
[340585129,1729511238457,-150.112233,0.000164,2]
[340585130,1729511238482,-150.112233,0.000164,2]
[340585131,1729511238506,-207.02859083,0.00016418,2]
[340585132,1729511238530,-33691.9472334,0.00016418,2]
[340585133,1729511238556,-50929.2367078,0.00016418,2]
[340585134,1729511238580,-184.66182739,0.00016427,2]
[340585135,1729511238606,-14849.49569121,0.00016428,2]
[340585136,1729511244111,-2390.97731534,0.00016428,2]
[340585258,1729511439416,-1000.0,0.00016338,2]
[340585259,1729511439426,-300.0,0.00016427,2]
[340585260,1729511439436,-31731.200299,0.00016428,2]
[340585261,1729511439446,-413672.758447,0.00016428,2]
[340585262,1729511439455,-500.0,0.00016437,2]
[340585263,1729511439464,-500.0,0.00016438,2]
[340585264,1729511439474,-500.0,0.00016438,2]
[340585265,1729511439485,-500.0,0.00016438,2]
[340585266,1729511439495,-500.0,0.00016438,2]
[340585267,1729511439505,-500.55522641,0.00016438,2]
[340585268,1729511439515,-501.43484337,0.00016438,2]
[340585269,1729511439526,-500.0,0.00016438,2]
[340585270,1729511439536,-500.0,0.00016438,2]
[340585271,1729511439546,-500.78134076,0.00016438,2]
[340585272,1729511439555,-155.42304752,0.00016438,2]
[340585273,1729511439566,-500.0,0.00016438,2]
[340585274,1729511439576,-500.0,0.00016438,2]
[340585275,1729511439585,-500.0,0.00016438,2]
[340585276,1729511439595,-500.0,0.00016438,2]
[340585277,1729511439605,-500.0,0.00016438,2]
[340585278,1729511439615,-514.6940696,0.00016438,2]
[340585279,1729511439624,-500.0,0.00016438,2]
[340585280,1729511439634,-500.0,0.00016438,2]
[340585281,1729511439644,-500.0,0.00016438,2]
[340585282,1729511439653,-500.0,0.00016438,2]
[340585283,1729511439663,-500.0,0.00016438,2]
[340585284,1729511439673,-500.0,0.00016438,2]
[340585285,1729511439683,-500.0,0.00016438,2]
[340585286,1729511439693,-262.83778493,0.00016438,2]
[340585287,1729511439703,-500.0,0.00016438,2]
[340585288,1729511439713,-500.0,0.00016438,2]
[340585289,1729511439722,-500.0,0.00016438,2]
[340585290,1729511439731,-500.0,0.00016438,2]
[340585291,1729511439741,-500.0,0.00016438,2]
[340585292,1729511439751,-500.0,0.00016438,2]
[340585293,1729511439760,-500.0,0.00016438,2]
[340585294,1729511439770,-500.0,0.00016438,2]
[340585295,1729511439779,-500.0,0.00016438,2]
[340585296,1729511439789,-500.0,0.00016438,2]
[340585297,1729511439798,-500.0,0.00016438,2]
[340585298,1729511439808,-443.39540687,0.00016438,2]
[340585299,1729511439817,-500.0,0.00016438,2]
[340585300,1729511439827,-500.0,0.00016438,2]
[340585301,1729511439836,-500.0,0.00016438,2]
[340585302,1729511439846,-541.37259021,0.00016438,2]
[340585303,1729511439855,-500.0,0.00016438,2]
[340585304,1729511439865,-90.00107518,0.00016438,2]
[340585305,1729511439946,-994.48,0.00016438,2]
[340585306,1729511439956,-811.52,0.00016438,2]
[340585307,1729511439966,-500.67653526,0.00016438,2]
[340585308,1729511439975,-500.0,0.00016438,2]
[340585309,1729511439985,-861.63,0.00016438,2]
[340585310,1729511439994,-500.0,0.00016438,2]
[340585311,1729511440004,-1299.45,0.00016438,2]
[340585312,1729511440014,-500.0,0.00016438,2]
[340585313,1729511440024,-751.03,0.00016438,2]
[340585314,1729511440034,-500.0,0.00016438,2]
[340585315,1729511440043,-500.0,0.00016438,2]
[340585316,1729511440054,-1014.51,0.00016438,2]
[340585317,1729511440064,-500.0,0.00016438,2]
[340585318,1729511440073,-514.58911486,0.00016438,2]
[340585319,1729511440084,-500.0,0.00016438,2]
[340585321,1729511440093,-500.0,0.00016438,2]
[340585322,1729511440103,-1677.76,0.00016438,2]
[340585324,1729511440113,-588.56,0.00016438,2]
[340585325,1729511440122,-500.0,0.00016438,2]
[340585327,1729511440131,-154.77076722,0.00016438,2]
[340585328,1729511440153,-345.22923278,0.00016438,2]
[340585329,1729511440163,-274.469716,0.00016438,2]
[340585357,1729511443850,-225.530284,0.00016438,2]
[340585358,1729511443861,-164.95558651,0.00016438,2]
[340585362,1729511446583,-419.52770081,0.00016438,2]
[340585363,1729511446710,-40.83984866,0.00016438,2]
[340585364,1729511446923,-388.05686402,0.00016438,2]
[340585365,1729511446934,-500.0,0.00016438,2]
[340585366,1729511446944,-501.08876875,0.00016438,2]
[340585367,1729511446955,-500.792705,0.00016438,2]
[340585368,1729511446964,-500.0,0.00016438,2]
[340585369,1729511446975,-596.94192265,0.00016438,2]
[340585370,1729511446984,-500.0,0.00016438,2]
[340585371,1729511446994,-500.0,0.00016438,2]
[340585372,1729511447004,-1117.82,0.00016438,2]
[340585373,1729511447013,-622.83,0.00016438,2]
[340585374,1729511447023,-509.23124272,0.00016438,2]
[340585375,1729511447033,-500.0,0.00016438,2]
[340585376,1729511447042,-500.0,0.00016438,2]
[340585377,1729511447051,-500.0,0.00016438,2]
[340585378,1729511447061,-500.0,0.00016438,2]
[340585379,1729511447071,-500.0,0.00016438,2]
[340585380,1729511447080,-508.3833842,0.00016438,2]
[340585381,1729511447090,-500.0,0.00016438,2]
[340585382,1729511447099,-500.0,0.00016438,2]
[340585383,1729511447108,-312.84494246,0.00016438,2]
[340585384,1729511447117,-500.0,0.00016438,2]
[340585385,1729511447127,-413.03456229,0.00016438,2]
[340585386,1729511525996,601.1,0.000105,2]
[340585388,1729511668396,1030.3,0.00022,60]
[340585391,1729512431120,-753.972739,0.00015088,2]
[340585392,1729512431143,-162.567317,0.00015394,2]
[340585393,1729512431169,-150.0,0.00015413,2]
[340585394,1729512431190,-162.567317,0.00015484,2]
[340585395,1729512431213,-162.567317,0.00015573,2]
[340585396,1729512431235,-162.567317,0.00015662,2]
[340585397,1729512431257,-162.567317,0.00015751,2]
[340585398,1729512431278,-162.567317,0.0001584,2]
[340585399,1729512431299,-162.567317,0.00015929,2]
[340585400,1729512431322,-755.10756356,0.00016,9]
[340585401,1729512447090,-244.89243644,0.00016,9]
[340585402,1729512447113,-162.567317,0.00016018,2]
[340585403,1729512447135,-162.567317,0.00016107,2]
[340585404,1729512447155,-151.26439637,0.00016164,2]
[340585405,1729512447176,-162.567317,0.00016197,2]
[340585406,1729512447196,-300.0,0.00016289,2]
[340585407,1729512447217,-300.0,0.00016289,2]
[340585408,1729512447236,-902.07804495,0.0001629,2]
[340585466,1729512639090,-1413.16055275,0.00016328,2]
[340585467,1729512639100,-1000.0,0.00016338,2]
[340585468,1729512639109,-150.112233,0.000164,2]
[340585469,1729512639118,-150.112233,0.000164,2]
[340585470,1729512639128,-150.112233,0.000164,2]
[340585471,1729512639137,-150.112233,0.000164,2]
[340585472,1729512639147,-150.112233,0.000164,2]
[340585473,1729512639156,-150.112233,0.000164,2]
[340585474,1729512639165,-112.82051964,0.000164,2]
[340585475,1729512639196,-37.29171336,0.000164,2]